bitfinex/quotes_ETHUSD_20230116
["timestamp","ask_amount","ask_price","bid_price","bid_amount"]
[1673840501677,3.0,1567.4,1567.1,4.34315034]
[1673840501871,3.0,1567.4,1567.2,1.287]
[1673840502041,3.0,1567.4,1567.2,2.787]
[1673840502868,3.0,1567.4,1567.2,1.287]
[1673840503108,3.0,1567.4,1567.3,2.8987]
[1673840503322,3.23,1567.4,1567.3,2.8987]
[1673840503603,0.23,1567.4,1567.3,2.8987]
[1673840505128,0.23,1567.4,1567.2,1.287]
[1673840506964,0.23,1567.4,1567.1,1.14415034]
[1673840507182,0.23,1567.3,1567.1,1.14415034]
[1673840508865,0.23,1567.3,1567.1,1.09415034]
[1673840510379,10.0,1567.5,1567.3,3.0]
[1673840510598,10.0,1567.5,1567.4,3.07]
[1673840510752,22.75658,1567.9,1567.4,3.07]
[1673840510963,19.65106678,1567.9,1567.4,2.77]
[1673840511203,36.43449754,1567.8,1567.3,0.23]
[1673840511420,9.67750754,1567.7,1567.3,0.23]
[1673840511596,6.4018226,1567.7,1567.3,0.23]
[1673840511806,6.4018226,1567.7,1567.3,6.61032]
[1673840511807,0.66907178,1567.7,1567.3,6.61032]
[1673840512055,0.87633918,1567.7,1567.4,1.5]
[1673840512269,0.87633918,1567.7,1567.4,7.8799]
[1673840512461,0.23,1567.7,1567.4,7.8799]
[1673840512639,0.23,1567.8,1567.4,6.3799]
[1673840513288,0.87633918,1567.8,1567.3,9.861662]
[1673840513695,3.23,1567.8,1567.4,0.9861662]
[1673840513963,3.23,1567.8,1567.4,2.4861662]
[1673840515954,9.60838,1567.8,1567.4,0.9861662]
[1673840516543,10.25471918,1567.8,1567.4,0.9861662]
[1673840517085,3.87633918,1567.8,1567.4,0.9861662]
[1673840517304,3.87633918,1567.8,1567.4,7.3660762]
[1673840517604,3.23,1567.8,1567.5,2.23660762]
[1673840518216,3.23,1567.8,1567.5,0.73660762]
[1673840519188,3.0,1567.8,1567.5,2.02560762]
[1673840519401,3.0,1567.8,1567.6,1.287]
[1673840519709,3.0,1568.0,1567.7,6.50747]
[1673840519913,3.05050081,1568.1,1567.7,6.50747]
[1673840520166,0.05050081,1568.1,1567.7,6.50747]
[1673840520739,0.05050081,1568.1,1567.7,12.88624]
[1673840520949,0.05050081,1568.1,1567.8,1.288624]
[1673840521160,0.05050081,1568.1,1567.7,6.50747]
[1673840521635,3.05050081,1568.1,1567.7,12.88624]
[1673840521951,0.23,1568.0,1567.7,12.88624]
[1673840523119,0.23,1568.0,1567.7,6.50747]
[1673840523472,0.23,1568.0,1567.7,12.88624]
[1673840523892,0.23,1568.0,1567.8,1.10006361]
[1673840525274,0.23,1568.0,1567.7,6.50747]
[1673840526101,0.23,1568.0,1567.7,12.88624]
[1673840526986,3.07323341,1568.1,1567.7,17.65902678]
[1673840527367,0.05050081,1568.1,1567.8,3.27278678]
[1673840527584,10.05050081,1568.2,1568.1,2.81190973]
[1673840527820,10.05050081,1568.2,1568.1,4.7229007]
[1673840527821,0.05050081,1568.2,1568.1,4.7229007]
[1673840528045,0.05050081,1568.2,1568.1,0.89890973]
[1673840528203,0.05050081,1568.2,1567.9,22.07187]
[1673840528438,0.05050081,1568.2,1567.9,6.37767]
[1673840528981,0.28050081,1568.2,1567.9,6.37767]
[1673840532042,0.28050081,1568.2,1567.9,7.80845195]
[1673840532566,0.05050081,1568.2,1568.0,3.27278678]
[1673840532790,0.05050081,1568.2,1568.0,4.56178678]
[1673840532931,0.05050081,1568.2,1567.9,10.60545195]
[1673840533302,0.05050081,1568.2,1567.9,20.25590873]
[1673840533464,0.05050081,1568.2,1567.9,18.75590873]
[1673840533876,0.28050081,1568.2,1567.9,7.80845195]
[1673840534140,0.28050081,1568.2,1567.9,6.37767]
[1673840534521,0.28050081,1568.2,1567.8,17.68096]
[1673840534733,0.28050081,1568.2,1567.8,11.3027]
[1673840540513,0.28050081,1568.2,1567.8,17.68105]
[1673840546116,0.28050081,1568.2,1567.8,18.96705]
[1673840546434,0.28050081,1568.2,1568.0,1.293]
[1673840546435,0.05050081,1568.2,1568.0,1.293]
[1673840546640,0.05050081,1568.2,1568.1,12.75428]
[1673840546848,0.05050081,1568.2,1568.1,14.05228]
[1673840548739,0.05050081,1568.2,1568.1,15.55228]
[1673840549794,0.05050081,1568.2,1568.1,18.82506678]
[1673840550005,0.05050081,1568.2,1568.1,21.49529846]
[1673840550159,0.05050081,1568.2,1568.1,7.67514]
[1673840550370,0.05050081,1568.2,1568.1,6.37714]
[1673840552104,0.05050081,1568.2,1568.1,12.75428]
[1673840553138,0.05050081,1568.2,1568.1,14.25428]
[1673840554258,0.05050081,1568.3,1568.2,1.5]
[1673840554515,0.05050081,1568.3,1568.2,8.22199346]
[1673840554726,0.01107097,1568.4,1568.3,7.87633]
[1673840554886,0.01107097,1568.4,1568.3,12.44711678]
[1673840556093,0.01107097,1568.4,1568.3,18.82344678]
[1673840557931,0.01107097,1568.4,1568.3,17.32344678]
[1673840558194,0.01107097,1568.4,1568.3,18.48233135]
[1673840558363,0.01107097,1568.4,1568.3,12.75266]
[1673840559617,0.01107097,1568.4,1568.3,14.04566]
[1673840560307,0.01107097,1568.4,1568.3,15.54566]
[1673840561521,0.01107097,1568.4,1568.3,14.04566]
[1673840561752,0.01107097,1568.4,1568.3,15.54566]
[1673840562078,0.01107097,1568.4,1568.3,19.01187967]
[1673840562661,0.01107097,1568.4,1568.3,17.51187967]
[1673840563131,0.01107097,1568.4,1568.3,19.01187967]
[1673840564294,0.01107097,1568.4,1568.3,17.51187967]
[1673840564470,0.01107097,1568.4,1568.3,14.04566]
[1673840565029,0.01107097,1568.4,1568.3,15.54566]
[1673840565767,0.01107097,1568.4,1568.3,14.04566]
[1673840566983,0.01107097,1568.4,1568.3,7.66933]
[1673840567613,0.01107097,1568.4,1568.3,9.16933]
[1673840567829,0.01107097,1568.4,1568.3,12.63558967]
[1673840568264,0.01107097,1568.4,1568.3,11.34258967]
[1673840569338,1e-08,1568.4,1568.3,11.34258967]
[1673840570071,1e-08,1568.4,1568.3,12.79158967]
[1673840571021,1e-08,1568.4,1568.3,19.16791967]
[1673840571177,1e-08,1568.4,1568.3,22.44070645]
[1673840574379,0.05050081,1568.6,1568.4,1.46199999]
[1673840574557,0.05050081,1568.6,1568.5,1.459]
[1673840575120,0.05050081,1568.6,1568.5,7.83451]
[1673840575589,0.05050081,1568.6,1568.5,10.189298]
[1673840576452,0.05050081,1568.6,1568.4,0.00199999]
[1673840576662,0.28050081,1568.6,1568.4,0.00199999]
[1673840577098,0.28050081,1568.6,1568.4,1.46199999]
[1673840577271,0.28050081,1568.6,1568.4,7.83787999]
[1673840577690,0.28050081,1568.6,1568.4,1.46199999]
[1673840578133,2.87676394,1568.5,1568.4,0.00199999]
[1673840578357,6.10676394,1568.5,1568.4,0.00199999]
[1673840578567,23.60678148,1568.5,1568.4,0.00199999]
[1673840578799,45.39597712,1568.5,1568.4,0.00199999]
[1673840578988,65.38707712,1568.5,1568.4,0.00199999]
[1673840579162,67.4814163,1568.5,1568.4,0.00199999]
[1673840579372,66.83507712,1568.5,1568.4,0.00199999]
[1673840579583,64.48036014,1568.5,1568.4,0.00199999]
[1673840580062,0.002,1568.3,1567.5,29.06172476]
[1673840580234,1.451,1567.9,1567.5,26.68809204]
[1673840580441,1.451,1567.9,1567.5,10.64169204]
[1673840580795,1.678,1567.8,1567.5,0.13969204]
[1673840581011,4.678,1567.8,1567.5,0.13969204]
[1673840582479,11.05637,1567.8,1567.5,0.13969204]
[1673840583817,0.0227326,1567.7,1567.5,0.13969204]
[1673840584072,1.4827326,1567.7,1567.5,0.13969204]
[1673840584257,0.23,1567.6,1567.5,0.13969204]
[1673840593188,0.23,1567.7,1567.5,0.13969204]
[1673840596277,1.448,1567.6,1567.5,0.13969204]
[1673840596586,1.7007326,1567.6,1567.5,0.13969204]
[1673840597192,4.7007326,1567.6,1567.5,0.13969204]
[1673840599371,20.73185938,1567.6,1567.5,0.13969204]
[1673840599583,22.19185938,1567.6,1567.5,0.13969204]
[1673840600035,23.69185938,1567.6,1567.5,0.13969204]
[1673840600244,21.7652832,1568.1,1568.0,201.67661129]
[1673840600468,58.14456,1568.1,1568.0,181.8213504]
[1673840600629,58.81059494,1568.1,1568.0,157.6371404]
[1673840600846,63.3599808,1568.1,1568.0,148.4470404]
[1673840601552,62.71364162,1568.1,1568.0,148.4470404]
[1673840602142,65.08338172,1568.1,1568.0,148.4470404]
[1673840602343,65.31338172,1568.1,1568.0,148.4470404]
[1673840603016,65.9597209,1568.1,1568.0,148.4470404]
[1673840603247,66.5899808,1568.1,1568.0,148.4470404]
[1673840603546,65.9597209,1568.1,1568.0,148.4470404]
[1673840603758,67.84084803,1568.1,1568.0,148.4470404]
[1673840603938,50.68681309,1568.1,1568.0,148.4470404]
[1673840604145,39.15575918,1568.1,1568.0,148.4470404]
[1673840604384,40.96854596,1568.1,1568.0,148.4470404]
[1673840604991,21.83712596,1568.1,1568.0,148.4470404]
[1673840605179,21.19078678,1568.1,1568.0,148.4470404]
[1673840605385,40.32220678,1568.1,1568.0,148.4470404]
[1673840605655,38.96854596,1568.1,1568.0,148.4470404]
[1673840606917,40.42854596,1568.1,1568.0,148.4470404]
[1673840607281,40.65854596,1568.1,1568.0,148.4470404]
[1673840607492,54.65854596,1568.1,1568.0,144.22558758]
[1673840607734,56.53967309,1568.1,1568.0,139.82858758]
[1673840608158,63.23767309,1568.1,1568.0,139.82858758]
[1673840608386,68.23767309,1568.1,1568.0,139.82858758]
[1673840608968,58.19854596,1568.1,1568.0,139.82858758]
[1673840609179,57.96854596,1568.1,1568.0,139.82858758]
[1673840609394,52.96854596,1568.1,1568.0,139.82858758]
[1673840609809,38.75626596,1568.1,1568.0,139.82858758]
[1673840610036,45.13340596,1568.1,1568.0,139.82858758]
[1673840611490,38.75626596,1568.1,1568.0,139.82858758]
[1673840612121,38.98626596,1568.1,1568.0,139.82858758]
[1673840613396,44.71706678,1568.1,1568.0,139.82858758]
[1673840613741,46.30440484,1568.1,1568.0,139.82858758]
[1673840614957,47.76440484,1568.1,1568.0,139.82858758]
[1673840615166,65.59142526,1568.1,1568.0,139.82858758]
[1673840615422,64.38222469,1568.1,1568.0,135.60713176]
[1673840615746,64.86035572,1568.1,1568.0,135.60713176]
[1673840616640,69.86035572,1568.1,1568.0,135.60713176]
[1673840617381,70.51875679,1568.1,1568.0,128.72991176]
[1673840618271,70.9929984,1568.1,1568.0,128.72991176]
[1673840618956,70.99999848,1568.1,1568.0,128.72991176]
[1673840619583,67.68887359,1568.1,1568.0,128.72991176]
[1673840620568,52.49533252,1568.1,1568.0,128.72991176]
[1673840620887,55.80645741,1568.1,1568.0,128.72991176]
[1673840621313,55.13453085,1568.1,1568.0,128.72991176]
[1673840621469,51.82340596,1568.1,1568.0,128.72991176]
[1673840621925,55.13453085,1568.1,1568.0,128.72991176]
[1673840622146,51.82340596,1568.1,1568.0,128.72991176]
[1673840622376,51.82340596,1568.1,1568.0,124.50840964]
[1673840622377,52.48125752,1568.1,1568.0,124.50840964]
[1673840623302,63.93738241,1568.1,1568.0,124.50840964]
[1673840625729,62.49038241,1568.1,1568.0,124.50840964]
[1673840625905,59.17925752,1568.1,1568.0,124.50840964]
[1673840627419,62.49038241,1568.1,1568.0,124.50840964]
[1673840628198,51.82340596,1568.1,1568.0,124.50840964]
[1673840628683,53.20242338,1568.1,1568.0,124.50840964]
[1673840628828,52.5560842,1568.1,1568.0,124.50840964]
[1673840629039,51.0960842,1568.1,1568.0,124.50840964]
[1673840629828,51.74242338,1568.1,1568.0,124.50840964]
[1673840630192,54.93446708,1568.1,1568.0,124.50840964]
[1673840630561,64.21942611,1568.1,1568.0,124.50840964]
[1673840631659,69.22083593,1568.1,1568.0,124.50840964]
[1673840631890,17.43779864,1568.3,1568.2,31.0984314]
[1673840632114,25.03349686,1568.3,1568.2,11.1588014]
[1673840632328,25.03349686,1568.3,1567.7,11.1652]
[1673840632329,32.72231743,1568.3,1567.7,10.2151014]
[1673840632504,8.74451354,1567.8,1567.7,10.2151014]
[1673840632728,8.74451354,1567.8,1567.5,17.59929204]
[1673840633080,8.74451354,1567.8,1567.5,19.63182124]
[1673840633081,1.41973354,1567.7,1567.5,19.63182124]
[1673840633298,4.41973354,1567.7,1567.5,19.63182124]
[1673840633607,1.41973354,1567.6,1567.5,2.17222124]
[1673840633820,1.41973354,1567.6,1567.5,0.13969204]
[1673840634029,1.64973354,1567.6,1567.5,0.13969204]
[1673840634507,8.02890354,1567.6,1567.5,0.13969204]
[1673840634715,11.02920695,1567.6,1567.5,0.13969204]
[1673840635071,6.54292825,1567.6,1567.5,0.13969204]
[1673840635661,4.6499502,1567.6,1567.5,0.13969204]
[1673840636290,6.54292825,1567.6,1567.5,0.13969204]
[1673840637084,6.54314608,1567.6,1567.5,0.13969204]
[1673840637863,5.12297805,1567.6,1567.5,0.13969204]
[1673840642076,7.48913159,1567.6,1567.5,0.13969204]
[1673840642642,5.59615354,1567.6,1567.5,0.13969204]
[1673840643279,15.24811032,1567.6,1567.5,0.13969204]
[1673840643491,12.88195678,1567.6,1567.5,0.13969204]
[1673840643813,15.24884076,1567.6,1567.5,0.13969204]
[1673840644909,17.14218619,1567.6,1567.5,0.13969204]
[1673840645951,17.14210136,1567.6,1567.5,0.13969204]
[1673840647126,14.77521738,1567.6,1567.5,0.13969204]
[1673840647897,23.52127136,1567.6,1567.5,0.13969204]
[1673840648115,14.77521738,1567.6,1567.5,0.13969204]
[1673840648329,17.14210136,1567.6,1567.5,0.13969204]
[1673840649223,15.24884076,1567.6,1567.5,0.13969204]
[1673840649456,21.62801076,1567.6,1567.5,0.13969204]
[1673840649841,15.24884076,1567.6,1567.5,0.13969204]
[1673840651677,17.14291237,1567.6,1567.5,0.13969204]
[1673840651870,15.24884076,1567.6,1567.5,0.13969204]
[1673840652364,15.24884076,1567.6,1567.5,0.03969204]
[1673840652996,12.88195678,1567.6,1567.5,0.03969204]
[1673840654803,13.55479364,1567.6,1567.5,0.03969204]
[1673840655027,22.77707609,1567.6,1567.5,0.03969204]
[1673840655245,15.72506923,1567.6,1567.5,0.03969204]
[1673840655567,9.60917,1567.6,1567.5,0.03969204]
[1673840655727,5.59947273,1567.6,1567.5,3.02369204]
[1673840655943,1.89562613,1567.6,1567.5,4.78606124]
[1673840656152,3.31739299,1567.6,1567.5,4.78606124]
[1673840656377,1.42176686,1567.6,1567.5,4.78606124]
[1673840657196,1.42176686,1567.6,1567.5,3.8893692]
[1673840657617,4.42176686,1567.6,1567.5,3.8893692]
[1673840658144,1.42176686,1567.6,1567.5,3.8893692]
[1673840658519,1.42176686,1567.6,1567.5,5.3493692]
[1673840658664,1.42176686,1567.7,1567.5,11.7289492]
[1673840658907,4.42176686,1567.8,1567.6,10.2726817]
[1673840659120,4.26509886,1567.9,1567.6,10.2726817]
[1673840659121,3.31739299,1567.9,1567.7,4.384]
[1673840659335,1.42176686,1567.9,1567.8,3.584]
[1673840659524,3.31739299,1567.9,1567.8,3.584]
[1673840659752,3.31739299,1567.9,1567.8,2.127]
[1673840659753,1.42176686,1567.9,1567.8,2.127]
[1673840659970,1.89562613,1567.9,1567.8,2.127]
[1673840660176,3.31657684,1567.9,1567.7,3.587]
[1673840660371,0.23,1567.8,1567.7,3.587]
[1673840660582,0.23,1567.8,1567.7,7.1523]
[1673840661212,0.23,1567.8,1567.7,5.0253]
[1673840661847,0.23,1567.8,1567.7,1.46]
[1673840662063,6.54657684,1567.8,1567.7,1.46]
[1673840662498,11.50398613,1567.8,1567.6,19.11]
[1673840662688,1.42021926,1567.7,1567.5,1.46]
[1673840662904,0.23,1567.6,1567.5,1.46]
[1673840663534,0.23,1567.6,1567.5,4.384]
[1673840663967,0.23,1567.6,1567.5,4.334]
[1673840664176,0.23,1567.6,1567.5,3.537]
[1673840665321,0.23,1567.6,1567.5,1.41]
[1673840665754,3.23,1567.6,1567.5,1.41]
[1673840666111,4.65021926,1567.6,1567.5,1.41]
[1673840666304,3.23,1567.6,1567.5,1.41]
[1673840666836,20.25343886,1567.6,1567.3,18.74279204]
[1673840667053,1.42023422,1567.5,1567.3,18.74279204]
[1673840667213,7.80000422,1567.5,1567.3,0.13969204]
[1673840667412,3.23,1567.4,1567.3,0.13969204]
[1673840668094,0.23,1567.4,1567.3,0.13969204]
[1673840668307,3.23,1567.4,1567.3,0.13969204]
[1673840669295,9.60999,1567.4,1567.3,0.13969204]
[1673840670777,15.98998,1567.4,1567.3,0.13969204]
[1673840670986,16.71256686,1567.4,1567.3,0.13969204]
[1673840671783,17.41021422,1567.4,1567.3,0.13969204]
[1673840672039,18.13280108,1567.4,1567.3,0.13969204]
[1673840672462,11.03022422,1567.4,1567.3,0.13969204]
[1673840672703,9.60999,1567.4,1567.3,0.13969204]
[1673840673509,3.23,1567.4,1567.3,0.13969204]
[1673840673955,9.60999,1567.4,1567.3,0.13969204]
[1673840674245,11.03022422,1567.4,1567.3,0.13969204]
[1673840675463,9.60999,1567.4,1567.3,0.13969204]
[1673840675895,3.23,1567.4,1567.3,0.13969204]
[1673840676877,9.60999,1567.4,1567.3,0.13969204]
[1673840677667,3.23,1567.4,1567.3,0.13969204]
[1673840679683,3.23,1567.4,1567.3,3.06369204]
[1673840680098,3.23,1567.4,1567.3,2.26669204]
[1673840680314,3.23,1567.4,1567.3,0.13969204]
[1673840681464,12.92585035,1567.4,1567.3,0.13969204]
[1673840681674,19.30584035,1567.4,1567.3,0.13969204]
[1673840682338,17.88560613,1567.4,1567.3,0.13969204]
[1673840682549,30.60913332,1567.4,1567.3,0.13969204]
[1673840682740,22.40698986,1567.4,1567.3,0.13969204]
[1673840683072,23.52533627,1567.4,1567.3,0.13969204]
[1673840683497,26.34403446,1567.4,1567.3,0.13969204]
[1673840683691,4.127,1567.3,1567.2,0.14439349]
[1673840683865,34.75759586,1567.3,1567.2,0.14439349]
[1673840684111,27.67632818,1567.3,1567.2,0.14439349]
[1673840684310,34.75759586,1567.3,1567.2,3.49e-06]
[1673840684675,20.48347054,1567.3,1567.2,3.49e-06]
[1673840685255,17.88250484,1567.3,1567.2,3.49e-06]
[1673840685695,17.88250484,1567.3,1567.2,4.38400349]
[1673840685696,1.41884606,1567.3,1567.2,4.38400349]
[1673840685912,3.3105709,1567.4,1567.2,4.93181887]
[1673840686231,1.41884606,1567.4,1567.2,4.93181887]
[1673840686445,3.3105709,1567.5,1567.3,1.46]
[1673840686634,1.41884606,1567.5,1567.4,4.384]
[1673840686855,13.3105709,1567.6,1567.4,4.384]
[1673840687059,11.41884606,1567.6,1567.4,4.384]
[1673840687408,3.3105709,1567.5,1567.4,4.384]
[1673840687623,1.41884606,1567.5,1567.3,1.46]
[1673840687778,14.17800606,1567.5,1567.3,1.46]
[1673840688138,14.82434524,1567.5,1567.3,1.46]
[1673840688350,0.23,1567.4,1567.2,1.46000349]
[1673840688541,6.61001,1567.4,1567.2,3.49e-06]
[1673840688725,9.61001,1567.4,1567.2,3.49e-06]
[1673840689891,19.26280678,1567.4,1567.2,3.49e-06]
[1673840690246,23.21971686,1567.4,1567.2,3.49e-06]
[1673840690773,4.69163284,1567.3,1567.2,3.49e-06]
[1673840690922,22.57413768,1567.3,1567.2,3.49e-06]
[1673840691136,21.32875202,1567.3,1567.2,3.49e-06]
[1673840691342,18.05596524,1567.3,1567.2,3.49e-06]
[1673840692029,21.32875202,1567.3,1567.2,3.49e-06]
[1673840692219,23.22012842,1567.3,1567.2,3.49e-06]
[1673840692818,21.8016308,1567.3,1567.2,3.49e-06]
[1673840693029,30.81686418,1567.3,1567.2,3.49e-06]
[1673840693288,30.99649724,1567.3,1567.2,3.49e-06]
[1673840693712,31.64283642,1567.3,1567.2,3.49e-06]
[1673840693920,24.67822129,1567.3,1567.2,3.49e-06]
[1673840694167,24.97680568,1567.3,1567.2,3.49e-06]
[1673840694666,25.62314486,1567.3,1567.2,3.49e-06]
[1673840694849,30.81375999,1567.3,1567.2,3.49e-06]
[1673840695058,32.11875278,1567.3,1567.2,3.49e-06]
[1673840695236,32.11875278,1567.3,1567.1,3.83e-06]
[1673840695237,38.33979473,1567.3,1567.1,3.83e-06]
[1673840695449,2.0,1567.1,1566.7,0.13724958]
[1673840695801,19.14729,1566.8,1566.7,0.13724958]
[1673840696137,6.38213,1566.9,1566.7,3.06124958]
[1673840696290,3.0,1566.8,1566.7,3.06124958]
[1673840696667,3.23,1566.8,1566.7,3.51257454]
[1673840696863,3.23,1566.8,1566.7,0.13724958]
[1673840697041,3.23,1566.8,1566.7,3.06124958]
[1673840698176,3.23,1566.8,1566.7,2.26424958]
[1673840698425,3.23,1566.8,1566.7,0.13724958]
[1673840698825,3.23,1566.8,1566.7,3.06124958]
[1673840699155,3.23,1566.8,1566.7,0.13724958]
[1673840700227,19.26764678,1566.8,1566.7,0.13724958]
[1673840700825,15.99486,1566.8,1566.7,0.13724958]
[1673840701262,9.61243,1566.8,1566.7,0.13724958]
[1673840702211,15.99486,1566.8,1566.7,0.13724958]
[1673840703011,19.26764678,1566.8,1566.7,0.13724958]
[1673840703586,15.99486,1566.8,1566.7,0.13724958]
[1673840704170,19.26764678,1566.8,1566.7,0.13724958]
[1673840705654,21.40657558,1566.8,1566.7,0.13724958]
[1673840705870,20.68465856,1566.8,1566.7,0.13724958]
[1673840706168,3.8138713,1567.0,1566.9,450.6614424]
[1673840706373,16.69827808,1567.0,1566.9,450.6614424]
[1673840706585,30.82977428,1567.0,1566.9,450.6614424]
[1673840706826,34.84952298,1567.0,1566.9,450.6614424]
[1673840707036,34.84952298,1567.0,1566.9,442.3905224]
[1673840707037,39.84952298,1567.0,1566.9,442.3905224]
[1673840707451,39.9564237,1567.0,1566.9,442.3905224]
[1673840707661,41.67106123,1567.0,1566.9,442.3905224]
[1673840707880,42.31740041,1567.0,1566.9,442.3905224]
[1673840708054,41.48858267,1567.0,1566.9,442.3905224]
[1673840708264,35.10696267,1567.0,1566.9,442.3905224]
[1673840708477,26.29398596,1567.0,1566.9,442.3905224]
[1673840708748,22.79119918,1567.0,1566.9,442.3905224]
[1673840708902,22.79119918,1567.0,1566.9,442.41310143]
[1673840708903,22.14486,1567.0,1566.9,442.41310143]
[1673840710682,11.46,1567.1,1566.9,448.93540772]
[1673840710683,10.0,1567.1,1566.9,448.93540772]
[1673840710948,2.8387614,1567.4,1567.0,4.384]
[1673840710949,6.3807,1567.3,1567.0,4.384]
[1673840711111,6.3807,1567.3,1567.1,0.00225466]
[1673840711566,6.37993,1567.5,1567.1,0.00225466]
[1673840711757,6.37993,1567.5,1567.1,1.46225466]
[1673840712126,6.37993,1567.5,1567.2,0.14622547]
[1673840713308,3.0,1567.4,1567.2,0.14622547]
[1673840716187,0.23,1567.3,1567.1,1.46225466]
[1673840716430,6.61067,1567.3,1567.1,1.46225466]
[1673840716637,3.0,1567.2,1567.1,3.58925466]
[1673840716864,3.23,1567.3,1567.1,4.16088013]
[1673840718322,1.41733679,1567.5,1567.2,1.46]
[1673840718532,6.37953,1567.6,1567.3,1.46311243]
[1673840718725,0.23,1567.5,1567.3,1.46311243]
[1673840719855,3.23,1567.5,1567.3,0.00311243]
[1673840720707,3.23,1567.5,1567.3,0.14942367]
[1673840721578,11.47466041,1567.8,1567.4,1.46]
[1673840721851,11.47466041,1567.8,1567.6,1.46]
[1673840722064,19.74241509,1567.8,1567.5,0.00229698]
[1673840722218,19.74241509,1567.8,1567.4,26.7106]
[1673840722589,7.79650679,1567.6,1567.4,26.7106]
[1673840722898,1.41733679,1567.6,1567.4,10.2687]
[1673840723112,1.41733679,1567.6,1567.4,11.29557]
[1673840723113,0.23,1567.5,1567.4,11.29557]
[1673840723324,0.23,1567.5,1567.4,3.95087]
[1673840723534,0.23,1567.6,1567.4,2.924]
[1673840724676,0.23,1567.6,1567.5,2.92629698]
[1673840725772,3.0,1567.7,1567.5,2.92629698]
[1673840726052,10.05732362,1567.8,1567.5,2.92629698]
[1673840726368,0.23,1567.7,1567.5,2.92629698]
[1673840726701,0.23,1567.7,1567.6,3.2166297]
[1673840727320,3.23,1567.7,1567.6,3.2166297]
[1673840729382,3.23,1567.7,1567.6,0.2926297]
[1673840729548,9.60877,1567.7,1567.3,11.9405]
[1673840731002,3.23,1567.7,1567.3,13.9405]
[1673840731216,3.23,1567.7,1567.4,0.01862747]
[1673840731544,3.23,1567.7,1567.5,1.46]
[1673840731912,3.23,1567.7,1567.5,1.45675759]
[1673840733401,9.6089,1567.7,1567.5,1.45675759]
[1673840733757,15.9878,1567.7,1567.4,1.46462747]
[1673840733907,15.9878,1567.7,1567.4,2.65914022]
[1673840734762,9.6089,1567.7,1567.4,2.65914022]
[1673840734980,9.6089,1567.7,1567.5,1.445]
[1673840736324,9.6089,1567.7,1567.6,442.3905224]
[1673840736533,15.98767,1567.7,1567.6,442.3905224]
[1673840737028,9.60877,1567.7,1567.6,442.3905224]
[1673840738531,15.98754,1567.7,1567.6,442.3905224]
[1673840738744,9.60877,1567.7,1567.6,442.3905224]
[1673840740752,15.98754,1567.7,1567.6,442.3905224]
[1673840740962,16.63387918,1567.7,1567.6,442.3905224]
[1673840741227,17.33751631,1567.7,1567.6,442.3905224]
[1673840742010,16.63387918,1567.7,1567.6,442.3905224]
[1673840742448,18.05121597,1567.7,1567.6,442.3905224]
[1673840742888,16.63387918,1567.7,1567.6,442.3905224]
[1673840743799,15.98754,1567.7,1567.6,442.3905224]
[1673840744346,3.0,1567.7,1567.6,448.91282869]
[1673840744554,31.10573087,1568.1,1568.0,404.5309306]
[1673840744763,23.70735625,1568.1,1568.0,404.5309306]
[1673840745006,30.08449625,1568.1,1568.0,404.5309306]
[1673840745216,12.81170947,1568.1,1568.0,404.5309306]
[1673840746064,0.05731947,1568.1,1568.0,412.49923689]
[1673840746773,0.05731947,1568.1,1568.0,411.05323689]
[1673840747209,0.05731947,1568.1,1568.0,404.5309306]
[1673840747531,12.81159947,1568.1,1568.0,404.5309306]
[1673840747688,15.81159947,1568.1,1568.0,404.5309306]
[1673840747900,9.43445947,1568.1,1568.0,404.5309306]
[1673840749859,3.28731947,1568.1,1568.0,404.5309306]
[1673840750016,3.28731947,1568.1,1568.0,411.05323689]
[1673840750234,9.66445947,1568.1,1568.0,411.05323689]
[1673840751223,3.28731947,1568.1,1568.0,411.05323689]
[1673840751413,3.28731947,1568.1,1568.0,412.50223689]
[1673840753170,3.28731947,1568.1,1568.0,411.05323689]
[1673840753378,9.66445947,1568.1,1568.0,411.05323689]
[1673840753622,3.28731947,1568.1,1568.0,411.05323689]
[1673840757110,0.28731947,1568.1,1568.0,411.05323689]
[1673840757423,3.28731947,1568.1,1568.0,411.05323689]
[1673840758049,0.28731947,1568.1,1568.0,411.05323689]
[1673840758262,3.28731947,1568.1,1568.0,411.05323689]
[1673840758849,0.28731947,1568.1,1568.0,411.05323689]
[1673840760787,0.0616206,1568.3,1568.1,2.28731947]
[1673840761095,0.0616206,1568.3,1568.2,5.79773195]
[1673840763080,0.0616206,1568.3,1568.2,4.33873195]
[1673840763316,6.00405087,1568.4,1568.2,3.313]
[1673840763794,6.00405087,1568.4,1568.1,1.74631947]
[1673840764446,6.00405087,1568.4,1568.1,1.76728512]
[1673840764871,6.00405087,1568.4,1568.1,0.30828512]
[1673840765082,6.00405087,1568.4,1568.1,6.83059141]
[1673840768897,0.23,1568.3,1568.1,6.83059141]
[1673840769744,51.9273487,1569.1,1569.0,277.9389471]
[1673840770053,46.0081644,1569.1,1569.0,272.8763571]
[1673840770213,50.58932171,1569.1,1569.0,271.9262571]
[1673840770422,53.04727063,1569.1,1569.0,271.9262571]
[1673840770636,51.60027063,1569.1,1569.0,271.9262571]
[1673840771263,46.60027063,1569.1,1569.0,271.9262571]
[1673840771471,54.60027063,1569.1,1569.0,271.9262571]
[1673840771948,46.83027063,1569.1,1569.0,271.9262571]
[1673840772133,54.83027063,1569.1,1569.0,271.9262571]
[1673840772540,56.6907796,1569.1,1569.0,271.9262571]
[1673840772752,55.0007796,1569.1,1569.0,271.9262571]
[1673840772963,53.14027063,1569.1,1569.0,271.9262571]
[1673840774364,31.14027063,1569.1,1569.0,271.9262571]
[1673840774581,42.14027063,1569.1,1569.0,271.9262571]
[1673840774796,41.4742444,1569.1,1569.0,271.9262571]
[1673840775315,24.20145762,1569.1,1569.0,271.9262571]
[1673840775686,12.82837762,1569.1,1569.0,276.63527572]
[1673840775901,0.08221762,1569.1,1569.0,276.63527572]
[1673840777256,0.08221762,1569.1,1569.0,278.08127572]
[1673840777942,6.45529762,1569.1,1569.0,271.9262571]
[1673840778100,15.82837762,1569.1,1569.0,271.9262571]
[1673840778312,9.45529762,1569.1,1569.0,271.9262571]
[1673840778958,9.68529762,1569.1,1569.0,271.9262571]
[1673840779423,9.68529762,1569.1,1569.0,278.44856339]
[1673840780892,16.05837762,1569.1,1569.0,271.9262571]
[1673840781060,3.31221762,1569.1,1569.0,271.9262571]
[1673840782568,17.94762324,1569.1,1569.0,271.9262571]
[1673840783777,16.05837762,1569.1,1569.0,271.9262571]
[1673840784248,17.94762324,1569.1,1569.0,271.9262571]